fUSD/lending_fUSD_20251001
["ID","MTS","AMOUNT","RATE_DAILY","PERIOD"]
[388787549,1759361447091,-497.1515781,0.00021632,2]
[388787551,1759361447100,-177.41530959,0.00021633,2]
[388787553,1759361447109,-9468.98389749,0.00021635,2]
[388787555,1759361447118,-647.08300379,0.00021637,2]
[388787557,1759361447128,-16246.38768438,0.00021638,2]
[388787559,1759361447137,-177.41530959,0.00021639,2]
[388787561,1759361447146,-314198.35233213,0.0002164,2]
[388787564,1759361447156,-66231.67213702,0.00021642,2]
[388787565,1759361447167,-1259.71971776,0.00021646,2]
[388787568,1759361447177,-3541.02693198,0.00021646,2]
[388787570,1759361447187,-1149.25014738,0.00021647,2]
[388787572,1759361447196,-251.62023487,0.00021648,2]
[388787574,1759361447206,-1090.0,0.00021648,2]
[388787576,1759361447215,-500.0,0.00021648,2]
[388787578,1759361447225,-500.0,0.00021648,2]
[388787580,1759361447234,-251.62023487,0.00021648,2]
[388787582,1759361447244,-314198.35233213,0.00021649,2]
[388787584,1759361447253,-407.67023899,0.00021651,2]
[388787586,1759361447262,-497.1515781,0.00021657,2]
[388787588,1759361447272,-16246.38768438,0.00021657,2]
[388787590,1759361447281,-3541.02693198,0.00021658,2]
[388787592,1759361447291,-80462.97548988,0.00021664,2]
[388787594,1759361447300,-30714.65627628,0.00021665,2]
[388787596,1759361447309,-16246.38768438,0.00021669,2]
[388787597,1759361447320,-425.48502648,0.00021672,17]
[388787598,1759361447329,-19693.48862777,0.00021673,2]
[388787599,1759361447338,-80462.97548988,0.00021674,2]
[388787600,1759361447347,-647.08300379,0.00021676,2]
[388787601,1759361447356,-3541.02693198,0.0002168,2]
[388787602,1759361447366,-30714.65627628,0.00021681,2]
[388787603,1759361447376,-1259.71971776,0.00021681,2]
[388787604,1759361447387,-3541.02693198,0.00021682,2]
[388787605,1759361447396,-647.08300379,0.00021684,2]
[388787606,1759361447406,-497.1515781,0.00021685,2]
[388787607,1759361447415,-18892.47795218,0.00021685,2]
[388787609,1759361447425,-407.67023899,0.00021688,2]
[388787611,1759361447434,-251.62023487,0.00021689,2]
[388787613,1759361447444,-3888.80354853,0.00021692,2]
[388787615,1759361447453,-16246.38768438,0.00021696,2]
[388787617,1759361447462,-10000.0,0.000217,2]
[388787619,1759361447474,-393.0,0.000217,2]
[388787621,1759361447484,-200.0,0.000217,2]
[388787623,1759361447493,-230.25431,0.000217,2]
[388787625,1759361447503,-823.0,0.00021746,2]
[388787627,1759361447512,-129.84117804,0.0002177,2]
[388787629,1759361447522,-500.0,0.0002177,2]
[388787631,1759361447531,-500.0,0.0002177,2]
[388787633,1759361447541,-1000.0,0.0002177,2]
[388787635,1759361447550,-1000.0,0.0002177,2]
[388787637,1759361447560,-231.84,0.00021773,2]
[388787639,1759361447569,-1067.02,0.0002178,3]
[388787641,1759361447578,-1067.02,0.0002178,3]
[388787643,1759361447588,-1067.02,0.0002178,3]
[388787645,1759361447597,-1067.02,0.0002178,3]
[388787647,1759361447606,-1067.02,0.0002178,3]
[388787649,1759361447615,-1067.02,0.0002178,3]
[388787651,1759361447624,-1067.02,0.0002178,3]
[388787654,1759361447635,-1067.02,0.0002178,3]
[388787656,1759361447645,-1067.02,0.0002178,3]
[388787658,1759361447654,-1067.02,0.0002178,3]
[388787660,1759361447664,-1067.02,0.0002178,3]
[388787662,1759361447674,-1067.02,0.0002178,3]
[388787664,1759361447684,-1067.02,0.0002178,3]
[388787666,1759361447695,-1067.02,0.0002178,3]
[388787668,1759361447704,-1067.02,0.0002178,3]
[388787669,1759361447714,-1067.02,0.0002178,3]
[388787671,1759361447724,-1067.02,0.0002178,3]
[388787673,1759361447733,-1067.02,0.0002178,3]
[388787676,1759361447748,-1067.02,0.0002178,3]
[388787678,1759361447757,-1067.02,0.0002178,3]
[388787680,1759361447767,-1067.02,0.0002178,3]
[388787682,1759361447776,-1067.02,0.0002178,3]
[388787684,1759361447786,-1067.02,0.0002178,3]
[388787686,1759361447796,-1067.11826541,0.0002178,3]
[388787688,1759361447805,-1600.41,0.00021787,2]
[388787690,1759361447814,-400.0,0.000218,7]
[388787692,1759361447823,-8586.59424876,0.00021813,2]
[388787694,1759361447833,-5000.0,0.00021813,2]
[388787696,1759361447842,-164.23116864,0.00021817,2]
[388787698,1759361447851,-198.75651745,0.00021817,5]
[388787700,1759361447861,-169.71604083,0.00021817,2]
[388787702,1759361447870,-500.0,0.0002187,2]
[388787704,1759361447879,-1000.0,0.0002187,2]
[388787706,1759361447889,-400.0,0.000219,7]
[388787708,1759361447898,-1315.3517,0.000219,2]
[388787710,1759361447907,-514.1725,0.000219,2]
[388787712,1759361447917,-1144.201,0.000219,2]
[388787714,1759361447926,-10000.0,0.00021916,2]
[388787716,1759361447935,-151.0,0.00021916,2]
[388787719,1759361447944,-151.0,0.00021916,2]
[388787720,1759361447954,-151.0,0.00021916,2]
[388787723,1759361447963,-151.0,0.00021916,2]
[388787724,1759361447972,-151.0,0.00021916,2]
[388787727,1759361447982,-151.0,0.00021916,2]
[388787729,1759361447991,-151.0,0.00021916,2]
[388787731,1759361448000,-151.0,0.00021916,2]
[388787733,1759361448009,-151.0,0.00021916,2]
[388787735,1759361448019,-151.0,0.00021916,2]
[388787737,1759361448028,-171.082644,0.00021916,2]
[388787739,1759361448044,-151.0,0.00021916,2]
[388787741,1759361448055,-171.082644,0.00021916,2]
[388787743,1759361448064,-151.0,0.00021916,2]
[388787745,1759361448073,-171.082644,0.00021916,2]
[388787747,1759361448088,-1146.168676,0.00021916,2]
[388787749,1759361448097,-171.082644,0.00021916,2]
[388787751,1759361448106,-1146.168676,0.00021916,2]
[388787753,1759361448115,-151.0,0.00021916,2]
[388787755,1759361448127,-186.170087,0.00021916,2]
[388787757,1759361448136,-1146.168676,0.00021916,2]
[388787759,1759361448146,-226.833572,0.00021916,2]
[388787761,1759361448155,-186.170087,0.00021916,2]
[388787763,1759361448164,-1146.168676,0.00021916,2]
[388787765,1759361448173,-186.170087,0.00021916,2]
[388787767,1759361448182,-186.170087,0.00021916,2]
[388787769,1759361448192,-151.0,0.00021916,2]
[388787771,1759361448201,-151.0,0.00021916,2]
[388787773,1759361448211,-151.0,0.00021916,2]
[388787775,1759361448221,-480.724032,0.00021916,2]
[388787777,1759361448230,-151.0,0.00021916,2]
[388787779,1759361448239,-495.661312,0.00021916,2]
[388787781,1759361448248,-225.293984,0.00021916,2]
[388787783,1759361448258,-480.724032,0.00021916,2]
[388787785,1759361448267,-495.661312,0.00021916,2]
[388787787,1759361448276,-480.724032,0.00021916,2]
[388787789,1759361448285,-495.661312,0.00021916,2]
[388787791,1759361448295,-480.724032,0.00021916,2]
[388787793,1759361448304,-495.661312,0.00021916,2]
[388787795,1759361448313,-151.0,0.00021916,2]
[388787797,1759361448323,-151.0,0.00021916,2]
[388787799,1759361448332,-892.57297,0.00021916,2]
[388787802,1759361448343,-151.0,0.00021916,2]
[388787804,1759361448352,-151.0,0.00021916,2]
[388787805,1759361448362,-151.0,0.00021916,2]
[388787806,1759361448371,-151.0,0.00021916,2]
[388787807,1759361448381,-892.57297,0.00021916,2]
[388787808,1759361448391,-161.71296,0.00021916,2]
[388787809,1759361448401,-151.0,0.00021916,2]
[388787810,1759361448410,-151.0,0.00021916,2]
[388787811,1759361448420,-237.163617,0.00021916,2]
[388787812,1759361448429,-892.57297,0.00021916,2]
[388787813,1759361448439,-151.0,0.00021916,2]
[388787814,1759361448449,-151.0,0.00021916,2]
[388787815,1759361448458,-892.57297,0.00021916,2]
[388787816,1759361448467,-237.163617,0.00021916,2]
[388787817,1759361448477,-151.0,0.00021916,2]
[388787818,1759361448487,-237.163617,0.00021916,2]
[388787819,1759361448496,-237.163617,0.00021916,2]
[388787820,1759361448506,-151.0,0.00021916,2]
[388787821,1759361448515,-151.0,0.00021916,2]
[388787822,1759361448524,-151.0,0.00021916,2]
[388787823,1759361448534,-151.0,0.00021916,2]
[388787824,1759361448543,-1570.347567,0.00021916,2]
[388787825,1759361448552,-151.0,0.00021916,2]
[388787826,1759361448561,-300.0,0.00021916,2]
[388787827,1759361448571,-17764.87608994,0.00021917,2]
[388787828,1759361448580,-770048.13857581,0.00021917,2]
[388787829,1759361448590,-203303.24045989,0.00021917,2]
[388787830,1759361448605,-500.0,0.00021917,2]
[388787831,1759361448615,-297.86236926,0.00021917,2]
[388787832,1759361448628,-500.0,0.00021917,2]
[388787833,1759361448639,-974.62,0.00021917,2]
[388787834,1759361448648,-2237.86,0.00021917,2]
[388787835,1759361448658,-4301.95,0.00021917,2]
[388787836,1759361448667,-500.0,0.00021917,2]
[388787837,1759361448677,-1500.1,0.00021917,2]
[388787838,1759361448686,-541.34,0.00021917,2]
[388787839,1759361448695,-529.53,0.00021917,2]
[388787840,1759361448705,-500.0,0.00021917,2]
[388787841,1759361448715,-594.56,0.00021917,2]
[388787842,1759361448724,-500.0,0.00021917,2]
[388787843,1759361448733,-723.88,0.00021917,2]
[388787844,1759361448743,-500.0,0.00021917,2]
[388787845,1759361448752,-402.79341693,0.00021917,2]
[388787846,1759361448762,-500.0,0.00021917,2]
[388787847,1759361448771,-500.0,0.00021917,2]
[388787848,1759361448780,-500.0,0.00021917,2]
[388787849,1759361448790,-1310.08,0.00021917,2]
[388787850,1759361448799,-894.35,0.00021917,2]
[388787851,1759361448809,-726.33,0.00021917,2]
[388787852,1759361448818,-500.0,0.00021917,2]
[388787853,1759361448827,-524.64,0.00021917,2]
[388787854,1759361448837,-1136.59,0.00021917,2]
[388787855,1759361448847,-500.0,0.00021917,2]
[388787856,1759361448856,-1102.47,0.00021917,2]
[388787857,1759361448865,-500.0,0.00021917,2]
[388787858,1759361448875,-500.0,0.00021917,2]
[388787859,1759361448885,-500.0,0.00021917,2]
[388787860,1759361448894,-500.0,0.00021917,2]
[388787861,1759361448905,-500.0,0.00021917,2]
[388787862,1759361448916,-893.02,0.00021917,2]
[388787863,1759361448925,-500.0,0.00021917,2]
[388787864,1759361448935,-500.0,0.00021917,2]
[388787865,1759361448944,-500.0,0.00021917,2]
[388787866,1759361448955,-795.13,0.00021917,2]
[388787867,1759361448964,-1921.34,0.00021917,2]
[388787868,1759361448974,-337.90446,0.00021917,2]
[388787869,1759361448984,-500.0,0.00021917,2]
[388787870,1759361448993,-500.0,0.00021917,2]
[388787871,1759361449003,-740.47,0.00021917,2]
[388787872,1759361449012,-2038.97,0.00021917,2]
[388787873,1759361449021,-500.0,0.00021917,2]
[388787874,1759361449030,-500.0,0.00021917,2]
[388787875,1759361449041,-500.0,0.00021917,2]
[388787876,1759361449051,-1529.71,0.00021917,2]
[388787877,1759361449060,-500.0,0.00021917,2]
[388787878,1759361449070,-500.0,0.00021917,2]
[388787879,1759361449079,-754.17,0.00021917,2]
[388787880,1759361449088,-664.03,0.00021917,2]
[388787881,1759361449098,-500.0,0.00021917,2]
[388787882,1759361449107,-981.76,0.00021917,2]
[388787883,1759361449116,-569.45,0.00021917,2]
[388787884,1759361449126,-500.0,0.00021917,2]
[388787885,1759361449136,-500.0,0.00021917,2]
[388787886,1759361449146,-500.0,0.00021917,2]
[388787887,1759361449159,-500.0,0.00021917,2]
[388787888,1759361449169,-500.0,0.00021917,2]
[388787889,1759361449178,-621.19,0.00021917,2]
[388787890,1759361449188,-604.23,0.00021917,2]
[388787891,1759361449198,-500.0,0.00021917,2]
[388787892,1759361449208,-500.0,0.00021917,2]
[388787893,1759361449310,-500.0,0.00021917,2]
[388787894,1759361449320,-500.0,0.00021917,2]
[388787895,1759361449329,-500.0,0.00021917,2]
[388787896,1759361449339,-500.0,0.00021917,2]
[388787897,1759361449348,-500.0,0.00021917,2]
[388787898,1759361449357,-500.0,0.00021917,2]
[388787899,1759361449366,-500.0,0.00021917,2]
[388787900,1759361449375,-500.0,0.00021917,2]
[388787901,1759361449383,-500.0,0.00021917,2]
[388787902,1759361449392,-500.0,0.00021917,2]
[388787903,1759361449402,-500.0,0.00021917,2]
[388787904,1759361449412,-500.0,0.00021917,2]
[388787905,1759361449421,-500.0,0.00021917,2]
[388787906,1759361449429,-500.0,0.00021917,2]
[388787907,1759361449439,-500.0,0.00021917,2]
[388787908,1759361449448,-500.0,0.00021917,2]
[388787909,1759361449457,-500.0,0.00021917,2]
[388787910,1759361449466,-500.0,0.00021917,2]
[388787911,1759361449475,-500.0,0.00021917,2]
[388787912,1759361449485,-653.11,0.00021917,2]
[388787913,1759361449494,-500.0,0.00021917,2]
[388787914,1759361449504,-500.0,0.00021917,2]
[388787915,1759361449513,-500.0,0.00021917,2]
[388787916,1759361449522,-500.0,0.00021917,2]
[388787917,1759361449531,-500.0,0.00021917,2]
[388787918,1759361449540,-500.0,0.00021917,2]
[388787919,1759361449549,-500.0,0.00021917,2]
[388787920,1759361449558,-500.0,0.00021917,2]
[388787921,1759361449567,-500.0,0.00021917,2]
[388787922,1759361449576,-500.0,0.00021917,2]
[388787923,1759361449586,-154.55335134,0.00021917,2]
[388787924,1759361449595,-285.80391525,0.00021917,2]
[388787925,1759361449604,-500.0,0.00021917,2]
[388787926,1759361449614,-500.0,0.00021917,2]
[388787927,1759361449623,-500.0,0.00021917,2]
[388787928,1759361449631,-500.0,0.00021917,2]
[388787929,1759361449641,-1718.86,0.00021917,2]
[388787930,1759361449650,-563.05905401,0.00021917,2]
[388787931,1759361449659,-500.0,0.00021917,2]
[388787932,1759361449668,-500.0,0.00021917,2]
[388787933,1759361449677,-380.91140343,0.00021917,2]
[388787934,1759361449686,-234.01268234,0.00021917,2]
[388787935,1759361449695,-500.0,0.00021917,2]
[388787936,1759361449704,-500.0,0.00021917,2]
[388787937,1759361449714,-500.0,0.00021917,2]
[388787938,1759361449723,-500.0,0.00021917,2]
[388787939,1759361449731,-500.0,0.00021917,2]
[388787940,1759361449740,-500.0,0.00021917,2]
[388787941,1759361449749,-917.35,0.00021917,2]
[388787942,1759361449759,-500.0,0.00021917,2]
[388787943,1759361449768,-500.0,0.00021917,2]
[388787944,1759361449776,-500.0,0.00021917,2]
[388787945,1759361449786,-863.69,0.00021917,2]
[388787946,1759361449795,-500.0,0.00021917,2]
[388787947,1759361449804,-606.92,0.00021917,2]
[388787948,1759361449813,-500.0,0.00021917,2]
[388787949,1759361449822,-500.0,0.00021917,2]
[388787950,1759361449831,-547.57,0.00021917,2]
[388787951,1759361449840,-500.0,0.00021917,2]
[388787952,1759361449849,-500.0,0.00021917,2]
[388787953,1759361449858,-496.34149783,0.00021917,2]
[388787954,1759361449867,-1281.96,0.00021917,2]
[388787955,1759361449876,-550.0,0.00021917,2]
[388787956,1759361449885,-500.0,0.00021917,2]
[388787957,1759361449894,-500.0,0.00021917,2]
[388787958,1759361449904,-544.0,0.00021917,2]
[388787959,1759361449913,-500.0,0.00021917,2]
[388787960,1759361449922,-500.0,0.00021917,2]
[388787961,1759361449930,-500.0,0.00021917,2]
[388787962,1759361449939,-502.77861482,0.00021917,2]
[388787963,1759361449948,-1530.42,0.00021917,2]
[388787964,1759361449957,-500.0,0.00021917,2]
[388787965,1759361449966,-500.0,0.00021917,2]
[388787966,1759361449975,-500.0,0.00021917,2]
[388787967,1759361449985,-452.25356414,0.00021917,2]
[388787968,1759361449994,-1115.14,0.00021917,2]
[388787969,1759361450004,-500.0,0.00021917,2]
[388787970,1759361450012,-500.0,0.00021917,2]
[388787971,1759361450021,-500.0,0.00021917,2]
[388787972,1759361450030,-500.0,0.00021917,2]
[388787973,1759361450039,-500.0,0.00021917,2]
[388787974,1759361450049,-500.0,0.00021917,2]
[388787975,1759361450058,-500.0,0.00021917,2]
[388787976,1759361450067,-534.77,0.00021917,2]
[388787977,1759361450076,-151.0,0.00021917,2]
[388787978,1759361450085,-151.0,0.00021917,2]
[388787979,1759361450094,-500.0,0.00021917,2]
[388787980,1759361450103,-500.0,0.00021917,2]
[388787981,1759361450111,-500.0,0.00021917,2]
[388787982,1759361450120,-502.74,0.00021917,2]
[388787983,1759361450129,-558.48,0.00021917,2]
[388787984,1759361450138,-500.0,0.00021917,2]
[388787985,1759361450148,-500.0,0.00021917,2]
[388787986,1759361450157,-500.0,0.00021917,2]
[388787987,1759361450166,-500.0,0.00021917,2]
[388787988,1759361450175,-500.0,0.00021917,2]
[388787989,1759361450184,-500.0,0.00021917,2]
[388787990,1759361450194,-816.79,0.00021917,2]
[388787991,1759361450203,-1034.27,0.00021917,2]
[388787992,1759361450212,-500.0,0.00021917,2]
[388787993,1759361450221,-500.0,0.00021917,2]
[388787994,1759361450230,-816.2,0.00021917,2]
[388787995,1759361450239,-500.0,0.00021917,2]
[388787996,1759361450248,-500.0,0.00021917,2]
[388787997,1759361450258,-500.0,0.00021917,2]
[388787998,1759361450267,-257.57174675,0.00021917,2]
[388787999,1759361450275,-606.61,0.00021917,2]
[388788000,1759361450284,-500.0,0.00021917,2]
[388788001,1759361450293,-500.0,0.00021917,2]
[388788002,1759361450302,-500.0,0.00021917,2]
[388788003,1759361450311,-500.0,0.00021917,2]
[388788004,1759361450320,-500.0,0.00021917,2]
[388788005,1759361450330,-500.0,0.00021917,2]
[388788006,1759361450339,-500.0,0.00021917,2]
[388788007,1759361450347,-500.0,0.00021917,2]
[388788008,1759361450356,-500.0,0.00021917,2]
[388788009,1759361450365,-500.0,0.00021917,2]
[388788010,1759361450375,-500.0,0.00021917,2]
[388788011,1759361450384,-500.0,0.00021917,2]
[388788012,1759361450392,-500.0,0.00021917,2]
[388788013,1759361450402,-592.82,0.00021917,2]
[388788014,1759361450411,-915.72,0.00021917,2]
[388788015,1759361450420,-500.0,0.00021917,2]
[388788016,1759361450429,-500.0,0.00021917,2]
[388788017,1759361450438,-500.0,0.00021917,2]
[388788018,1759361450446,-958.35,0.00021917,2]
[388788019,1759361450455,-502.58,0.00021917,2]
[388788020,1759361450464,-622.32,0.00021917,2]
[388788021,1759361450473,-500.0,0.00021917,2]
[388788022,1759361450482,-500.0,0.00021917,2]
[388788023,1759361450491,-500.0,0.00021917,2]
[388788024,1759361450500,-545.81,0.00021917,2]
[388788025,1759361450509,-500.0,0.00021917,2]
[388788026,1759361450518,-500.0,0.00021917,2]
[388788027,1759361450527,-500.0,0.00021917,2]
[388788028,1759361450535,-500.0,0.00021917,2]
[388788029,1759361450544,-500.0,0.00021917,2]
[388788030,1759361450553,-500.0,0.00021917,2]
[388788031,1759361450562,-528.39,0.00021917,2]
[388788032,1759361450570,-500.0,0.00021917,2]
[388788033,1759361450579,-1376.52,0.00021917,2]
[388788034,1759361450589,-500.0,0.00021917,2]
[388788035,1759361450598,-500.0,0.00021917,2]
[388788036,1759361450607,-500.0,0.00021917,2]
[388788037,1759361450616,-500.0,0.00021917,2]
[388788038,1759361450626,-1091.63,0.00021917,2]
[388788039,1759361450635,-500.0,0.00021917,2]
[388788040,1759361450645,-500.0,0.00021917,2]
[388788041,1759361450654,-408.05028136,0.00021917,2]
[388788042,1759361450663,-500.0,0.00021917,2]
[388788043,1759361450672,-801.51,0.00021917,2]
[388788044,1759361450681,-714.27,0.00021917,2]
[388788045,1759361450691,-500.0,0.00021917,2]
[388788046,1759361450700,-824.44,0.00021917,2]
[388788047,1759361450709,-1144.84,0.00021917,2]
[388788048,1759361450718,-500.0,0.00021917,2]
[388788049,1759361450727,-500.0,0.00021917,2]
[388788050,1759361450736,-616.06316311,0.00021917,2]
[388788051,1759361450745,-594.35,0.00021917,2]
[388788052,1759361450754,-500.0,0.00021917,2]
[388788053,1759361450763,-617.05,0.00021917,2]
[388788054,1759361450772,-500.0,0.00021917,2]
[388788055,1759361450781,-500.0,0.00021917,2]
[388788056,1759361450792,-500.0,0.00021917,2]
[388788057,1759361450801,-500.0,0.00021917,2]
[388788058,1759361450810,-419.37450889,0.00021917,2]
[388788059,1759361450819,-500.0,0.00021917,2]
[388788060,1759361450828,-788.73,0.00021917,2]
[388788061,1759361450837,-500.0,0.00021917,2]
[388788062,1759361450848,-500.0,0.00021917,2]
[388788063,1759361450857,-178.987276,0.00021917,2]
[388788064,1759361450866,-500.0,0.00021917,2]
[388788065,1759361450875,-500.0,0.00021917,2]
[388788066,1759361450884,-1026.66,0.00021917,2]
[388788067,1759361450892,-881.27,0.00021917,2]
[388788068,1759361450903,-581.74,0.00021917,2]
[388788069,1759361450913,-500.0,0.00021917,2]
[388788070,1759361450922,-497.04714867,0.00021917,2]
[388788071,1759361450932,-590.8,0.00021917,2]
[388788072,1759361450941,-500.0,0.00021917,2]
[388788073,1759361450951,-500.0,0.00021917,2]
[388788074,1759361450960,-500.0,0.00021917,2]
[388788075,1759361450970,-500.0,0.00021917,2]
[388788076,1759361450980,-500.0,0.00021917,2]
[388788077,1759361450989,-500.0,0.00021917,2]
[388788078,1759361450997,-787.17,0.00021917,2]
[388788079,1759361451006,-500.0,0.00021917,2]
[388788080,1759361451016,-500.0,0.00021917,2]
[388788081,1759361451025,-500.0,0.00021917,2]
[388788082,1759361451034,-189.82789538,0.00021917,2]
[388788083,1759361451043,-1128.72,0.00021917,2]
[388788084,1759361451052,-500.0,0.00021917,2]
[388788085,1759361451061,-151.0,0.00021917,2]
[388788086,1759361451070,-500.0,0.00021917,2]
[388788087,1759361451079,-404.97,0.00021917,2]
[388788088,1759361451088,-2044.41,0.00021917,2]
[388788089,1759361451098,-508.02896588,0.00021917,2]
[388788090,1759361451107,-500.0,0.00021917,2]
[388788091,1759361451116,-500.0,0.00021917,2]
[388788092,1759361451125,-1638.96,0.00021917,2]
[388788093,1759361451134,-582.89,0.00021917,2]
[388788094,1759361451143,-1420.84,0.00021917,2]
[388788095,1759361451152,-500.0,0.00021917,2]
[388788096,1759361451162,-500.0,0.00021917,2]
[388788097,1759361451171,-500.0,0.00021917,2]
[388788098,1759361451180,-500.0,0.00021917,2]
[388788099,1759361451189,-171.24159464,0.00021917,2]
[388788100,1759361451198,-500.0,0.00021917,2]
[388788101,1759361451207,-500.0,0.00021917,2]
[388788102,1759361451216,-500.0,0.00021917,2]
[388788103,1759361451225,-500.0,0.00021917,2]
[388788104,1759361451234,-500.0,0.00021917,2]
[388788105,1759361451243,-353.01,0.00021917,2]
[388788106,1759361451252,-500.0,0.00021917,2]
[388788107,1759361451261,-500.0,0.00021917,2]
[388788108,1759361451271,-510.39,0.00021917,2]
[388788109,1759361451279,-278.10428723,0.00021917,2]
[388788110,1759361451289,-500.0,0.00021917,2]
[388788111,1759361451299,-500.0,0.00021917,2]
[388788112,1759361451308,-500.0,0.00021917,2]
[388788113,1759361451317,-500.0,0.00021917,2]
[388788114,1759361451327,-906.07,0.00021917,2]
[388788115,1759361451336,-500.0,0.00021917,2]
[388788116,1759361451345,-272.96800501,0.00021917,2]
[388788117,1759361451354,-500.0,0.00021917,2]
[388788118,1759361451363,-500.0,0.00021917,2]
[388788119,1759361451372,-500.0,0.00021917,2]
[388788120,1759361451381,-799.42,0.00021917,2]
[388788121,1759361451390,-500.0,0.00021917,2]
[388788122,1759361451400,-500.0,0.00021917,2]
[388788123,1759361451409,-622.08,0.00021917,2]
[388788124,1759361451418,-1350.5,0.00021917,2]
[388788125,1759361451427,-500.0,0.00021917,2]
[388788126,1759361451435,-2522.78,0.00021917,2]
[388788127,1759361451444,-500.0,0.00021917,2]
[388788128,1759361451453,-501.31626353,0.00021917,2]
[388788129,1759361451462,-500.0,0.00021917,2]
[388788130,1759361451472,-576.43,0.00021917,2]
[388788131,1759361451481,-1127.56,0.00021917,2]
[388788132,1759361451490,-500.0,0.00021917,2]
[388788133,1759361451499,-151.0,0.00021917,2]
[388788134,1759361451509,-500.0,0.00021917,2]
[388788135,1759361451518,-370.19765877,0.00021917,2]
[388788136,1759361451527,-500.0,0.00021917,2]
[388788137,1759361451536,-500.0,0.00021917,2]
[388788138,1759361451546,-500.0,0.00021917,2]
[388788139,1759361451555,-500.0,0.00021917,2]
[388788140,1759361451564,-699.84,0.00021917,2]
[388788141,1759361451573,-500.0,0.00021917,2]
[388788142,1759361451582,-500.0,0.00021917,2]
[388788143,1759361451591,-1317.8,0.00021917,2]
[388788144,1759361451600,-500.0,0.00021917,2]
[388788145,1759361451609,-500.0,0.00021917,2]
[388788146,1759361451618,-2073.75,0.00021917,2]
[388788147,1759361451627,-500.0,0.00021917,2]
[388788148,1759361451636,-500.0,0.00021917,2]
[388788149,1759361451645,-500.0,0.00021917,2]
[388788150,1759361451654,-500.0,0.00021917,2]
[388788151,1759361451664,-500.0,0.00021917,2]
[388788152,1759361451673,-2583.5,0.00021917,2]
[388788153,1759361451682,-500.0,0.00021917,2]
[388788154,1759361451691,-2155.59,0.00021917,2]
[388788155,1759361451700,-500.0,0.00021917,2]
[388788156,1759361451709,-500.0,0.00021917,2]
[388788157,1759361451718,-500.6,0.00021917,2]
[388788158,1759361451727,-500.0,0.00021917,2]
[388788159,1759361451736,-2408.26,0.00021917,2]
[388788160,1759361451745,-500.0,0.00021917,2]
[388788161,1759361451755,-151.0,0.00021917,2]
[388788162,1759361451765,-151.0,0.00021917,2]
[388788163,1759361451776,-151.0,0.00021917,2]
[388788164,1759361451786,-151.0,0.00021917,2]
[388788165,1759361451795,-500.0,0.00021917,2]
[388788166,1759361451804,-2530.68,0.00021917,2]
[388788167,1759361451813,-500.0,0.00021917,2]
[388788168,1759361451822,-500.0,0.00021917,2]
[388788169,1759361451831,-548.79,0.00021917,2]
[388788170,1759361451840,-2695.33,0.00021917,2]
[388788171,1759361451849,-500.0,0.00021917,2]
[388788172,1759361451858,-6380.99,0.00021917,2]